Cogmind - Beta 15 @@@ ROGUE MODE // 2025.10.15 @ 03:03:45 Player: Runagate Result: Destroyed by B-99 Colossus with Linear Accelerator Performance ------------- Evolutions (9) 4500 Regions Visited (15) 3000 Robots Destroyed (106) 530 Value Destroyed (2034) 2034 Prototype IDs (14) 280 Alien Tech Used (0) 0 Bonus (537) 537 TOTAL SCORE: 10881 Bonus ------- Follower Combat Kills 37 Scanned by Researcher 500 Cogmind --------- Core Integrity 0/1600 Matter 92/300 Energy 100/100 System Corruption 1% Temperature Cool (0) Movement Core (50) Location -1/Command Parts ------- > --- POWER (3) -------- (None) > --- PROPULSION (8) --- (None) > --- UTILITY (12) ----- Machine Analyzer Enhanced Optical Array Advanced Signal Interpreter Hacking Suite System Shield > --- WEAPON (2) ------- (None) > --- INVENTORY (5) ---- Micro Antimatter Reactor Light Quantum Reactor Improved VTOL Module Cooled Q-thruster Advanced Sensor Array Peak State ------------ > --- POWER ------------ Micro Fission Core Light Particle Reactor Light Quantum Reactor > --- PROPULSION ------- Improved VTOL Module Improved VTOL Module Improved VTOL Module Xenon Bombardment Thruster Impulse Thruster Cooled Field Propulsion Drive Impulse Thruster Array > --- UTILITY ---------- Advanced Cryofiber Web Small Storage Unit Enhanced Optical Array Advanced Sensor Array Advanced Sensor Array Advanced Signal Interpreter Advanced Signal Interpreter IFF Parser Advanced Reaction Control System Hacking Suite System Shield Ghost Barrier > --- WEAPON ----------- Power Sword > --- INVENTORY -------- Particle Reactor Micro Antimatter Reactor Light Quantum Reactor Improved VTOL Module Cooled Q-thruster Cooled Q-thruster Advanced Sensor Array Advanced Terrain Scan Processor [Rating: 140] Favorites ----------- Power Ion Engine Engine Ion Engine Power Core Micro Fission Core Reactor Light Particle Reactor Propulsion Improved VTOL Module Leg Aluminum Leg Flight Unit Improved VTOL Module Utility Small Storage Unit Device Disposable Heat Sink Storage Small Storage Unit Processor Advanced Signal Interpreter Hackware Hacking Suite Weapon Heavy EM Pulse Gun Energy Gun Heavy EM Pulse Gun Ballistic Gun Assault Rifle Slashing Weapon Power Sword Build | -11 -10 -9 -8 -8 -7 -6 -5 -5 -5 -4 -3 -3 -2 -1 -1 ------- Run | Yrd Mat Mat Mat Sto Fac Fac Fac Upp Upp Fac Res Tes Res Acc Com Slots Evolved 18 | . . 2 2 . 2 2 2 . . 2 2 . 2 2 . Power 2 | . . . . . 1 . . . . . . . 1 . . Propulsion 6 | . . 2 1 . . . 1 . . . 1 . 1 . . Utility 10 | . . . 1 . 1 2 1 . . 2 1 . . 2 . Weapon . | . . . . . . . . . . . . . . . . Parts Attached 107 | 7 10 24 8 6 8 5 5 1 . 3 8 6 5 5 6 Power 18 | 1 2 3 1 1 1 1 1 . . 2 3 . . 1 1 Engine 9 | 1 2 3 1 1 . . . . . . 1 . . . . Core 4 | . . . . . 1 1 1 . . 1 . . . . . Reactor 5 | . . . . . . . . . . 1 2 . . 1 1 Propulsion 38 | 2 3 13 6 5 . 1 1 . . . 2 1 2 1 1 Treads . | . . . . . . . . . . . . . . . . Leg 14 | 2 3 9 . . . . . . . . . . . . . Wheel . | . . . . . . . . . . . . . . . . Hover . | . . . . . . . . . . . . . . . . Flight 24 | . . 4 6 5 . 1 1 . . . 2 1 2 1 1 Utility 38 | 2 1 3 1 . 6 2 3 1 . 1 3 5 3 3 4 Device 19 | 1 1 1 1 . 2 1 1 1 . 1 2 3 2 1 1 Storage 6 | 1 . 2 . . 1 . . . . . . . . 1 1 Processor 8 | . . . . . 1 . 2 . . . 1 1 1 1 1 Hackware 5 | . . . . . 2 1 . . . . . 1 . . 1 Protection . | . . . . . . . . . . . . . . . . Artifact . | . . . . . . . . . . . . . . . . Weapon 13 | 2 4 5 . . 1 1 . . . . . . . . . Energy Gun 9 | 2 3 4 . . . . . . . . . . . . . Energy Cannon . | . . . . . . . . . . . . . . . . Ballistic Gun 2 | . 1 1 . . . . . . . . . . . . . Ballistic Cannon . | . . . . . . . . . . . . . . . . Launcher . | . . . . . . . . . . . . . . . . Special Weapon . | . . . . . . . . . . . . . . . . Impact Weapon . | . . . . . . . . . . . . . . . . Slashing Weapon 2 | . . . . . 1 1 . . . . . . . . . Piercing Weapon . | . . . . . . . . . . . . . . . . Special Melee Weapon . | . . . . . . . . . . . . . . . . Unidentified Prototypes 10 | . . 1 . 1 . . . . . . . 5 1 . 2 Parts Lost 39 | . 1 4 . 4 . . . . . . . 5 4 5 16 Power 4 | . . 1 . . . . . . . . . 1 . . 2 Propulsion 17 | . . 2 . 2 . . . . . . . 1 3 3 6 Utility 13 | . . . . 1 . . . . . . . 2 1 2 7 Weapon 5 | . 1 1 . 1 . . . . . . . 1 . . 1 Highest Loss Streak 16 | . 1 4 . 4 . . . . . . . 4 2 5 16 To Critical Strikes . | . . . . . . . . . . . . . . . . Average Backups 6 | 1 6 7 7 3 7 7 7 8 8 6 6 7 6 7 7 Power 1 | . 1 1 2 2 1 1 1 2 2 2 2 2 1 2 2 Propulsion 1 | . . . 1 . 4 4 4 4 4 4 3 2 2 3 2 Utility 1 | . 1 1 1 1 2 1 . 2 2 . 1 3 2 2 1 Weapon 1 | . 4 2 3 . . . . . . . . . . . . Tool/Special . | . . . . . . . . . . . . . . . . Unused Backups 10 | . 3 . . 1 . . 1 . . . . . . . 5 Power 2 | . . . . . . . . . . . . . . . 2 Propulsion 3 | . . . . . . . 1 . . . . . . . 2 Utility 4 | . 3 . . . . . . . . . . . . . 1 Weapon 1 | . . . . 1 . . . . . . . . . . . Tool/Special . | . . . . . . . . . . . . . . . . Average Slot Usage (%) 94 | . 100 95 95 93 88 94 99 100 100 94 90 90 84 85 77 Engine 7 | . 14 10 9 9 10 3 . . . . . . . . . Core 2 | . . . . . 4 8 11 11 11 7 4 3 4 4 3 Reactor 1 | . . . . . . . . . . 2 2 4 4 7 3 Leg 15 | . 28 35 . . . . . . . . . . . . . Flight 16 | . . 4 40 43 38 33 35 35 35 31 33 33 30 26 22 Device 14 | . 14 10 17 15 7 12 16 17 17 20 19 15 15 16 12 Storage 9 | . 14 11 9 9 7 6 5 5 5 5 4 4 4 4 4 Processor 2 | . . . . . 2 6 5 5 5 5 4 8 8 10 14 Hackware 4 | . . . . . 6 13 11 11 11 10 9 9 13 12 14 Energy Gun 13 | . 26 17 9 9 7 . . . . . . . . . . Ballistic Gun 1 | . 1 4 9 6 . . . . . . . . . . . Slashing Weapon 2 | . . . . . 2 7 11 11 11 10 9 8 4 4 3 Peak Build Rating 140 | 7 11 17 19 25 42 57 70 70 70 80 93 104 123 140 138 Average Rating 40 | 5 9 11 16 17 34 50 66 69 70 76 80 89 110 131 121 On Entrance 53 | . 7 9 15 19 25 42 57 70 70 70 77 86 86 110 119 Naked Turns . | . . . . . . . . . . . . . . . . Heaviest Build 52 | 15 17 21 14 14 21 26 27 26 26 28 38 39 31 49 52 Greatest Support 57 | 20 20 40 22 25 25 26 31 31 31 31 39 41 51 51 57 Greatest Overweight (x) 3 | . . 3 . . . . . . . . . 1 . . . Average Overweight (x) . | . . . . . . . . . . . . . . . . Largest Inventory Capacity 25 | 8 8 25 8 8 10 8 8 8 8 8 8 8 8 10 8 Average Capacity 7 | 7 8 8 8 8 8 8 8 8 8 8 8 8 8 8 7 Most Carried 8 | 2 8 8 8 8 8 8 8 8 8 8 8 8 8 8 8 Average Carried 6 | 1 6 7 7 3 7 7 7 8 8 6 7 7 5 7 7 Final Capacity 8 | 8 8 8 8 8 8 8 8 8 8 8 8 8 8 8 5 Final Carried 8 | 2 7 8 8 7 8 7 8 8 8 6 8 7 8 8 5 Class Distribution -------------------- 44% | Mutant 16% | Hacker-Sprinter 9% | Hacker-Scout 8% | Scavenger-Mutant 8% | Sprinter 7% | Hacker-Ninja 4% | Scavenger-Sprinter Dominant Class ---------------- Mutant | -10/Materials Scavenger-Mutant | -9/Materials Sprinter | -8/Materials Scavenger-Sprinter | -8/Storage Sprinter | -7/Factory Hacker-Sprinter | -6/Factory Hacker-Sprinter | -5/Factory Hacker-Sprinter | -5/Upper Caves Hacker-Sprinter | -5/Upper Caves Hacker-Sprinter | -4/Factory Hacker-Sprinter | -3/Research Hacker-Ninja | -3/Testing Hacker-Ninja | -2/Research Hacker-Scout | -1/Access Hacker-Scout | -1/Command Resources | -11 -10 -9 -8 -8 -7 -6 -5 -5 -5 -4 -3 -3 -2 -1 -1 ----------- Run | Yrd Mat Mat Mat Sto Fac Fac Fac Upp Upp Fac Res Tes Res Acc Com Matter Collected 1648 | 270 152 440 67 . . 63 214 124 . . 21 127 42 128 . Remotely . | . . . . . . . . . . . . . . . . Salvage Created 3647 | 310 1159 1399 97 . . 63 214 87 . . 21 127 42 128 . Parts 233 | 21 91 71 11 . . 6 9 . . . 3 13 1 7 . Haulers Intercepted 5 | . 2 3 . . . . . . . . . . . . . Recyclers Shooed 2 | . . 1 . . . . 1 . . . . . . . . Parts Field Recycled . | . . . . . . . . . . . . . . . . Retrieved Matter . | . . . . . . . . . . . . . . . . Parts Self-Destructed . | . . . . . . . . . . . . . . . . Prevented . | . . . . . . . . . . . . . . . . Kills | -11 -10 -9 -8 -8 -7 -6 -5 -5 -5 -4 -3 -3 -2 -1 -1 ------- Run | Yrd Mat Mat Mat Sto Fac Fac Fac Upp Upp Fac Res Tes Res Acc Com Combat Hostiles Destroyed 47 | . 19 21 7 . . . . . . . . . . . . Guns 45 | . 18 20 7 . . . . . . . . . . . . AOE 1 | . 1 . . . . . . . . . . . . . . Classes Destroyed 14 | 3 6 4 . . . . . . . . . 1 . . . Worker 15 | 2 2 2 . . . 3 2 . . . 1 1 . 2 . Builder 6 | . 6 . . . . . . . . . . . . . . Tunneler 10 | 8 1 1 . . . . . . . . . . . . . Hauler 5 | . 2 3 . . . . . . . . . . . . . Recycler 6 | 1 2 2 . . . . 1 . . . . . . . . Mechanic 1 | . . 1 . . . . . . . . . . . . . Operator 5 | . 3 . . . . 1 1 . . . . . . . . Watcher 10 | . 3 3 . . . . . . . . . 1 1 2 . Swarmer 18 | . 9 2 7 . . . . . . . . . . . . Grunt 20 | . 10 10 . . . . . . . . . . . . . Brawler 1 | . . 1 . . . . . . . . . . . . . Duelist 1 | . . 1 . . . . . . . . . . . . . Researcher 1 | . . . . . . . . . . . . 1 . . . Sentry 7 | . . 7 . . . . . . . . . . . . . Packrat 1 | . . . . . . . . 1 . . . . . . . Best Kill Streak 6 | 3 5 6 4 . . 3 3 . . . 1 2 1 1 . Combat Bots Only 5 | . 3 5 4 . . . . . . . . . . . . Max Kills in Single Turn 2 | 1 1 1 2 . . 1 1 1 . . 1 1 1 1 . Gunslinging 1 | . . . 1 . . . . . . . . . . . . Exploded 1 | . 1 . . . . . . . . . . . . . . Melee . | . . . . . . . . . . . . . . . . Uniques/NPCs Destroyed . | . . . . . . . . . . . . . . . . Combat | -11 -10 -9 -8 -8 -7 -6 -5 -5 -5 -4 -3 -3 -2 -1 -1 -------- Run | Yrd Mat Mat Mat Sto Fac Fac Fac Upp Upp Fac Res Tes Res Acc Com Hostile Shots Fired 541 | . 59 92 41 39 . 4 10 4 4 . 4 54 10 54 166 Missed 211 | . 18 20 17 22 . 2 5 3 1 . 1 30 6 30 56 Hits 330 | . 41 72 24 17 . 2 5 1 3 . 3 24 4 24 110 Melee 1 | . . . . . . . . . . . . . . . 1 Projectile 329 | . 41 72 24 17 . 2 5 1 3 . 3 24 4 24 109 Critical Strikes 10 | . 1 1 . . . . . . 1 . . 3 . . 4 Damage Taken 5617 | . 420 931 235 249 . 37 182 30 54 . 61 370 163 563 2322 Core 2180 | . 41 168 51 91 . . 93 . 20 . 19 81 . 66 1550 Absorbed by Shields 613 | . . . . . . . . . . . . 84 . . 529 Core Remaining (%) 89 | 100 83 58 . 74 100 100 . . 88 100 . 92 100 . . Volleys Fired 226 | 31 70 105 17 2 1 . . . . . . . . . . Largest 2 | 2 2 2 2 2 1 . . . . . . . . . . Hottest 101 | 80 90 101 63 63 40 . . . . . . . . . . Shots Fired 445 | 62 136 208 34 4 1 . . . . . . . . . . Gun 445 | 62 136 208 34 4 1 . . . . . . . . . . Cannon . | . . . . . . . . . . . . . . . . Launcher . | . . . . . . . . . . . . . . . . Special . | . . . . . . . . . . . . . . . . Kinetic 76 | . 8 49 17 2 . . . . . . . . . . . Thermal 141 | . . 121 17 2 1 . . . . . . . . . . Explosive . | . . . . . . . . . . . . . . . . Electromagnetic 228 | 62 128 38 . . . . . . . . . . . . . Robot Hit Streak 12 | 8 12 9 4 . . . . . . . . . . . . Robot Miss Streak 13 | 5 5 7 13 . . . . . . . . . . . . Penetration Max . | . . . . . . . . . . . . . . . . Secondary Targets 6 | . 2 2 2 . . . . . . . . . . . . Max Gunslinging Chain 1 | . 1 1 1 . . . . . . . . . . . . Shots Hit Robots 268 | 33 75 119 13 . . 6 6 1 . . 1 4 3 7 . Core Hits 132 | 12 39 60 7 . . 4 2 . . . . 3 1 4 . Critical Kills . | . . . . . . . . . . . . . . . . Critical Parts Destroyed . | . . . . . . . . . . . . . . . . Critical Strikes 7 | . 1 5 . . . . . . . . . . . 1 . Burn 4 | . . 4 . . . . . . . . . . . . . Corrupt 2 | . 1 1 . . . . . . . . . . . . . Sever 1 | . . . . . . . . . . . . . . 1 . Melee Attacks 58 | . . . . . 1 7 14 1 . . 2 9 3 16 5 Impact . | . . . . . . . . . . . . . . . . Slashing 58 | . . . . . 1 7 14 1 . . 2 9 3 16 5 Piercing . | . . . . . . . . . . . . . . . . Sneak Attacks 12 | . . . . . . 3 4 1 . . 1 1 . 2 . Combat Hostiles . | . . . . . . . . . . . . . . . . Follow-up Attacks 2 | . . . . . . . 1 . . . . 1 . . . Damage Inflicted 5386 | 470 1305 1625 168 . . 395 449 100 . . 91 222 153 408 . Guns 3323 | 445 1185 1525 168 . . . . . . . . . . . . Cannons . | . . . . . . . . . . . . . . . . Explosions 218 | 25 99 94 . . . . . . . . . . . . . Melee 1818 | . . . . . . 395 449 100 . . 91 222 153 408 . Ramming 27 | . 21 6 . . . . . . . . . . . . . Kinetic 463 | . 37 338 88 . . . . . . . . . . . . Thermal 1226 | 25 99 1022 80 . . . . . . . . . . . . Explosive . | . . . . . . . . . . . . . . . . Electromagnetic 1852 | 445 1148 259 . . . . . . . . . . . . . Impact . | . . . . . . . . . . . . . . . . Slashing 1818 | . . . . . . 395 449 100 . . 91 222 153 408 . Piercing . | . . . . . . . . . . . . . . . . Highest Corruption 3 | . . . . . . . 1 1 1 . . 3 . 1 1 Average Corruption 1 | . . . . . . . 1 1 1 . . 2 . 1 1 Corruption Purged . | . . . . . . . . . . . . . . . . Corruption Blocked . | . . . . . . . . . . . . . . . . Effects 4 | . . . . . . . . . . . . 2 . 1 1 Message Errors 2 | . . . . . . . . . . . . 2 . . . Matter Fused 1 | . . . . . . . . . . . . . . 1 . Parts Fused 1 | . . . . . . . . . . . . . . . 1 Overload Shots . | . . . . . . . . . . . . . . . . Overflow Damage 353 | . . 24 . . . 12 110 91 . . 51 5 2 58 . Projectiles . | . . . . . . . . . . . . . . . . Explosions 24 | . . 24 . . . . . . . . . . . . . Melee 329 | . . . . . . 12 110 91 . . 51 5 2 58 . Knockbacks . | . . . . . . . . . . . . . . . . Impact . | . . . . . . . . . . . . . . . . Kinetic . | . . . . . . . . . . . . . . . . Secondary . | . . . . . . . . . . . . . . . . Self-Inflicted Damage 22 | . . 22 . . . . . . . . . . . . . Shots 1 | . . 1 . . . . . . . . . . . . . Rammed 1 | . . 1 . . . . . . . . . . . . . Targets Rammed 6 | . 4 2 . . . . . . . . . . . . . Kicked 5 | . 4 1 . . . . . . . . . . . . . Crushed . | . . . . . . . . . . . . . . . . Highest Temperature 334 | 162 240 199 10 24 193 66 3 301 . . 47 144 202 334 33 Average Temperature 71 | 53 60 80 6 11 62 23 2 138 . . 11 53 84 128 12 Received Heat Transfer 880 | . 180 360 18 90 . 18 18 . 45 . 9 97 . 18 27 Effects 7 | . . . . . . . . 2 . . . . . 5 . Interference 6 | . . . . . . . . 2 . . . . . 4 . Damage (minor) 1 | . . . . . . . . . . . . . . 1 . Siege Activations . | . . . . . . . . . . . . . . . . Martial Activations . | . . . . . . . . . . . . . . . . Shielding Activations . | . . . . . . . . . . . . . . . . Robots Disrupted . | . . . . . . . . . . . . . . . . Combat Hostiles . | . . . . . . . . . . . . . . . . Robots Corrupted 1 | . 1 . . . . . . . . . . . . . . Combat Hostiles . | . . . . . . . . . . . . . . . . Parts Fried 9 | 6 3 . . . . . . . . . . . . . . Impact Corruptions . | . . . . . . . . . . . . . . . . Robots Melted 1 | . . 1 . . . . . . . . . . . . . Combat Hostiles 1 | . . 1 . . . . . . . . . . . . . Parts Melted 5 | . . 5 . . . . . . . . . . . . . Heat Transferred 3045 | 50 100 2720 175 . . . . . . . . . . . . Parts Sabotaged . | . . . . . . . . . . . . . . . . Parts Stolen . | . . . . . . . . . . . . . . . . Parts Stripped . | . . . . . . . . . . . . . . . . Power Chain Reactions 5 | 1 3 1 . . . . . . . . . . . . . Alert | -11 -10 -9 -8 -8 -7 -6 -5 -5 -5 -4 -3 -3 -2 -1 -1 ------- Run | Yrd Mat Mat Mat Sto Fac Fac Fac Upp Upp Fac Res Tes Res Acc Com Maximum Alert Level 1 | . 1 1 1 1 . . . . . . . . . 1 1 Low Security (%) 83 | 100 91 46 40 92 100 100 100 . . 100 100 100 100 97 54 Level 1 16 | . 8 53 59 7 . . . . . . . . . 2 45 Level 2 . | . . . . . . . . . . . . . . . . Level 3 . | . . . . . . . . . . . . . . . . Level 4 . | . . . . . . . . . . . . . . . . Level 5 . | . . . . . . . . . . . . . . . . High Security . | . . . . . . . . . . . . . . . . Max Security . | . . . . . . . . . . . . . . . . Peak Influence 389 | 15 219 389 303 222 100 95 137 . . 56 54 57 30 274 230 Initial 175 | . 3 77 163 118 100 11 46 . . 56 29 30 24 . 175 Average 95 | 2 94 206 215 107 53 44 46 . . 56 18 24 11 27 182 Influence Increases 3402 | 55 647 744 190 264 45 155 248 180 . . 74 169 67 459 105 Destroy 0b10 Robot/C 980 | . 380 420 140 20 . . . . . . . 20 . . . Destroy 0b10 Robot/NC 290 | 55 95 60 . . . 20 20 . . . 5 10 5 20 . Destroy Leader 260 | . 80 142 20 10 . . . . . . . 2 2 4 . Allied During Kill 2 | . . . . 2 . . . . . . . . . . . Successful Hack 159 | . 11 . . 7 . . 10 . . . 9 47 . 12 63 Disable Machine 255 | . 60 90 . . 15 15 . . . . 15 45 . 15 . Destroy Structure 46 | . 6 2 . . . . 8 . . . . . . 18 12 Partial Spotted 315 | . . . 15 30 30 . 75 . . . 30 30 . 90 15 Lose Combat Pursuer 1095 | . 15 30 15 195 . 120 135 180 . . 15 15 60 300 15 Influence Decreases 3342 | 50 468 539 296 325 242 85 338 75 21 33 76 178 112 185 319 Entered New Map 913 | . 2 107 226 165 122 14 49 3 21 33 27 24 21 . 99 Time Decay 1881 | 50 456 392 70 80 120 71 152 72 . . 49 117 57 135 60 Lost Part 371 | . 10 40 . 40 . . . . . . . 37 34 50 160 Lost Ally 40 | . . . . 40 . . . . . . . . . . . Purge Threat 137 | . . . . . . . 137 . . . . . . . . Squads Dispatched 26 | . 3 5 3 3 . 1 2 . . . 1 2 2 3 1 Investigation 5 | . 1 1 1 . . . . . . . . . . 1 1 Extermination 5 | . . . . . . . 2 . . . . 1 1 1 . Reinforcement 13 | . 2 4 1 1 . 1 . . . . 1 1 1 1 . Assault 2 | . . . . 2 . . . . . . . . . . . Garrison 1 | . . . 1 . . . . . . . . . . . . Intercept . | . . . . . . . . . . . . . . . . Searches Triggered . | . . . . . . . . . . . . . . . . Construction Impeded . | . . . . . . . . . . . . . . . . Haulers Reinforced . | . . . . . . . . . . . . . . . . Active Scanning Responses . | . . . . . . . . . . . . . . . . Cargo Convoy Interrupts . | . . . . . . . . . . . . . . . . Stealth | -11 -10 -9 -8 -8 -7 -6 -5 -5 -5 -4 -3 -3 -2 -1 -1 --------- Run | Yrd Mat Mat Mat Sto Fac Fac Fac Upp Upp Fac Res Tes Res Acc Com Distress Signals 11 | . 1 3 . 1 . . 2 . . . 1 . 1 1 1 Communications Jammed 7 | . . . . . . . 1 . . . . 4 2 . . Distress Signals 6 | . . . . . . . 1 . . . . 4 1 . . Times Spotted 213 | . 26 33 11 35 . 8 17 8 3 . 7 16 8 25 16 Peak Tracking Total 22 | . 4 5 5 22 . 6 5 9 3 . 6 12 4 19 14 Tactical Retreats 30 | . 1 1 1 3 . 3 6 5 . . 1 1 3 4 1 Traps | -11 -10 -9 -8 -8 -7 -6 -5 -5 -5 -4 -3 -3 -2 -1 -1 ------- Run | Yrd Mat Mat Mat Sto Fac Fac Fac Upp Upp Fac Res Tes Res Acc Com Traps Triggered 26 | . 1 1 . . . . 3 . . . . 2 3 2 14 Indirectly . | . . . . . . . . . . . . . . . . Trap Hack Attempts . | . . . . . . . . . . . . . . . . Triggered . | . . . . . . . . . . . . . . . . Disarmed . | . . . . . . . . . . . . . . . . Reprogrammed 1 | . . . 1 . . . . . . . . . . . . Reused . | . . . . . . . . . . . . . . . . Traps Extracted . | . . . . . . . . . . . . . . . . Installed . | . . . . . . . . . . . . . . . . Triggered . | . . . . . . . . . . . . . . . . Machines | -11 -10 -9 -8 -8 -7 -6 -5 -5 -5 -4 -3 -3 -2 -1 -1 ---------- Run | Yrd Mat Mat Mat Sto Fac Fac Fac Upp Upp Fac Res Tes Res Acc Com Machines Disabled 17 | . 4 6 . . 1 1 . . . . 1 3 . 1 . Max in Single Turn 2 | . 1 2 . . 1 1 . . . . 1 1 . 1 . Garrison Access 1 | . . . . . . . . . . . . . . 1 . Machines Repaired . | . . . . . . . . . . . . . . . . Machines Dismantled . | . . . . . . . . . . . . . . . . Machines Sabotaged . | . . . . . . . . . . . . . . . . Overloaded Fab Kills . | . . . . . . . . . . . . . . . . Hacking | -11 -10 -9 -8 -8 -7 -6 -5 -5 -5 -4 -3 -3 -2 -1 -1 --------- Run | Yrd Mat Mat Mat Sto Fac Fac Fac Upp Upp Fac Res Tes Res Acc Com Machines Accessed 32 | . 6 3 2 2 2 1 2 . . . 1 3 1 5 4 Terminals 31 | . 6 3 2 2 2 1 2 . . . 1 3 1 4 4 Fabricators . | . . . . . . . . . . . . . . . . Repair Stations . | . . . . . . . . . . . . . . . . Recycling Units . | . . . . . . . . . . . . . . . . Scanalyzers . | . . . . . . . . . . . . . . . . Garrison Access 1 | . . . . . . . . . . . . . . 1 . Total Hacks 84 | . 14 8 6 2 8 1 7 . . . 3 8 1 10 16 Successful 39 | . 10 1 2 2 . . 6 . . . 2 5 . 4 7 Failed 44 | . 4 7 4 . 8 1 1 . . . 1 2 1 6 9 Catastrophic 19 | . . 3 2 . 2 1 . . . . 1 2 1 3 4 Database Lockouts 1 | . . . . . . . . . . . . 1 . . . Manual 37 | . 12 6 1 . 7 1 3 . . . 1 4 1 . 1 Terminals 82 | . 14 8 6 2 8 1 7 . . . 3 8 1 8 16 Fabricators . | . . . . . . . . . . . . . . . . Repair Stations . | . . . . . . . . . . . . . . . . Recycling Units . | . . . . . . . . . . . . . . . . Scanalyzers . | . . . . . . . . . . . . . . . . Garrison Access 2 | . . . . . . . . . . . . . . 2 . Terminal Hacks 29 | . 2 . 2 2 . . 6 . . . 2 5 . 3 7 Record 11 | . . . . . . . 4 . . . 2 4 . . 1 Prototype ID Bank 1 | . . . . . . . . . . . . 1 . . . Open Door 5 | . . . . 2 . . . . . . . . . 3 . Emergency Access Points 3 | . . . . . . . . . . . . . . . 3 Alert Level 1 | . 1 . . . . . . . . . . . . . . Unreport Threat 2 | . . . . . . . 2 . . . . . . . . Locate Traps 4 | . 1 . 1 . . . . . . . . . . . 2 Reprogram Traps 1 | . . . 1 . . . . . . . . . . . . Maintenance Status 1 | . . . . . . . . . . . . . . . 1 Fabricator Hacks . | . . . . . . . . . . . . . . . . Repair Station Hacks . | . . . . . . . . . . . . . . . . Recycling Unit Hacks . | . . . . . . . . . . . . . . . . Scanalyzer . | . . . . . . . . . . . . . . . . Garrison Access Hacks 1 | . . . . . . . . . . . . . . 1 . Seal Access 1 | . . . . . . . . . . . . . . 1 . Unauthorized Hacks 9 | . 8 1 . . . . . . . . . . . . . Terminals 9 | . 8 1 . . . . . . . . . . . . . Botnet 1 | . 1 . . . . . . . . . . . . . . Operators 1 | . 1 . . . . . . . . . . . . . . Skim 7 | . 6 1 . . . . . . . . . . . . . Fabricators . | . . . . . . . . . . . . . . . . Repair Stations . | . . . . . . . . . . . . . . . . Recycling Units . | . . . . . . . . . . . . . . . . Scanalyzers . | . . . . . . . . . . . . . . . . Garrison Access . | . . . . . . . . . . . . . . . . Data Cores Recovered 2 | . 1 . . . . . 1 . . . . . . . . Used 1 | . 1 . . . . . . . . . . . . . . Hacking Detections 24 | . 4 3 1 1 2 1 2 . . . 1 3 1 1 4 Full Trace Events 3 | . . 2 1 . . . . . . . . . . . . Feedback Events . | . . . . . . . . . . . . . . . . Feedback Blocked . | . . . . . . . . . . . . . . . . Robot Schematics Acquired 2 | . . . . . . . . . . . . 2 . . . Robots Built . | . . . . . . . . . . . . . . . . Authchips . | . . . . . . . . . . . . . . . . Time . | . . . . . . . . . . . . . . . . Total Robot Build Rating . | . . . . . . . . . . . . . . . . Part Schematics Acquired . | . . . . . . . . . . . . . . . . Parts Built . | . . . . . . . . . . . . . . . . Authchips . | . . . . . . . . . . . . . . . . Time . | . . . . . . . . . . . . . . . . Total Part Build Rating . | . . . . . . . . . . . . . . . . Parts Repaired . | . . . . . . . . . . . . . . . . Time . | . . . . . . . . . . . . . . . . Parts Recycled . | . . . . . . . . . . . . . . . . Recycled Matter . | . . . . . . . . . . . . . . . . Retrieved Matter . | . . . . . . . . . . . . . . . . Retrieved Components . | . . . . . . . . . . . . . . . . Parts Scanalyzed . | . . . . . . . . . . . . . . . . Part Schematics Acquired . | . . . . . . . . . . . . . . . . Parts Damaged . | . . . . . . . . . . . . . . . . Bothacking | -11 -10 -9 -8 -8 -7 -6 -5 -5 -5 -4 -3 -3 -2 -1 -1 ------------ Run | Yrd Mat Mat Mat Sto Fac Fac Fac Upp Upp Fac Res Tes Res Acc Com Used RIF Installer . | . . . . . . . . . . . . . . . . Robots Hacked . | . . . . . . . . . . . . . . . . Non-combat . | . . . . . . . . . . . . . . . . Combat . | . . . . . . . . . . . . . . . . Robot Hacks Applied . | . . . . . . . . . . . . . . . . Relay Couplers Released . | . . . . . . . . . . . . . . . . Fabnet Peak Effective % . | . . . . . . . . . . . . . . . . Robots Rewired . | . . . . . . . . . . . . . . . . Allies Hacked . | . . . . . . . . . . . . . . . . Hacks Repelled . | . . . . . . . . . . . . . . . . Allies | -11 -10 -9 -8 -8 -7 -6 -5 -5 -5 -4 -3 -3 -2 -1 -1 -------- Run | Yrd Mat Mat Mat Sto Fac Fac Fac Upp Upp Fac Res Tes Res Acc Com Total Allies 14 | . . . . 2 . . 12 . . . . . . . . Largest Group 8 | . . . . 2 . . 8 . . . . . . . . Highest-Rated Group 164 | . . . . 62 . . 164 . . . . . . . . Highest-Rated Ally 31 | . . . . 31 . . 31 . . . . . . . . Total Orders 3 | . . . . . . . . . . . . 3 . . . EXPLORE 2 | . . . . . . . . . . . . 2 . . . RETURN 1 | . . . . . . . . . . . . 1 . . . Ally Attacks 15 | . . . . 15 . . . . . . . . . . . Total Damage 212 | . . . . 212 . . . . . . . . . . . Kills 1 | . . . . 1 . . . . . . . . . . . Allies Corrupted . | . . . . . . . . . . . . . . . . Allies Melted . | . . . . . . . . . . . . . . . . Intel | -11 -10 -9 -8 -8 -7 -6 -5 -5 -5 -4 -3 -3 -2 -1 -1 ------- Run | Yrd Mat Mat Mat Sto Fac Fac Fac Upp Upp Fac Res Tes Res Acc Com Active Infowar (turns) 2847 | 9 379 49 121 165 253 160 348 192 3 19 130 278 200 408 133 Optics 958 | . . . . . . . . . . . . 234 200 391 133 Sensors 2396 | . . . 118 165 253 160 348 192 3 19 130 278 199 408 123 IFF 692 | . . . . . . . . . . 17 45 . 164 408 58 Seismic 770 | 9 379 49 121 103 . . . . . . . . . . 109 Machine Analysis 75 | . . . . . . . . . . . . . . . 75 Jamming 1275 | . . . . . . 106 348 192 3 19 130 278 199 . . ECM 1 | . . . . . 1 . . . . . . . . . . Robot Analysis Total . | . . . . . . . . . . . . . . . . Derelict Logs Recovered 2 | . . . . . . . . 2 . . . . . . . Drone Launches 2 | . . . . . . . . . . . . 2 . . . Drone Recoveries 2 | . . . . . . . . . . . . 2 . . . Exploration | -11 -10 -9 -8 -8 -7 -6 -5 -5 -5 -4 -3 -3 -2 -1 -1 ------------- Run | Yrd Mat Mat Mat Sto Fac Fac Fac Upp Upp Fac Res Tes Res Acc Com Turns Passed 5417 | 254 1779 936 147 177 253 160 348 192 3 19 130 278 200 408 133 Spaces Moved 8103 | 125 815 541 263 331 714 430 1307 607 14 45 291 561 603 1068 388 Core 4 | 3 . . . . . . . . . . . . . . 1 Treads . | . . . . . . . . . . . . . . . . Legs 1351 | 122 815 414 . . . . . . . . . . . . . Wheels . | . . . . . . . . . . . . . . . . Hover . | . . . . . . . . . . . . . . . . Flight 6748 | . . 127 263 331 714 430 1307 607 14 45 291 561 603 1068 387 Fastest Speed 17 | 50 120 31 28 23 23 23 21 21 21 21 18 20 17 20 24 Average Speed 38 | 118 120 103 30 31 23 23 21 21 21 22 18 20 19 21 24 Slowest Speed 280 | 120 120 280 32 32 23 24 21 21 21 24 20 99 24 29 50 Overloaded Moves . | . . . . . . . . . . . . . . . . Propulsion Burnouts . | . . . . . . . . . . . . . . . . Robots Hopped 68 | . . . 3 27 4 4 6 . . . 5 3 10 3 3 Potential Cave-ins . | . . . . . . . . . . . . . . . . Cave-ins Triggered . | . . . . . . . . . . . . . . . . Exploration Rate (%) 32 | 6 97 49 26 61 13 12 40 64 3 1 8 60 23 26 25 Regions Visited 15 Branch Regions 5 Pre-discovered Areas 2 | . 2 . . . . . . . . . . . . . . Known Exits Taken 10 | . . . . . 1 1 1 1 1 1 1 1 1 1 . Unknown Exits Taken 5 | 1 1 1 1 1 . . . . . . . . . . . Scrap Searched 2 | . . . . . . . . 2 . . . . . . . Spaces Dug 15 | . . . . . . . 4 . . . . . . 6 5 Terrain Destroyed 24 | 3 6 . . . . . 4 . . . . . . 6 5 Melee 15 | . . . . . . . 4 . . . . . . 6 5 Projectile . | . . . . . . . . . . . . . . . . AOE 9 | 3 6 . . . . . . . . . . . . . . Terrain Rammed . | . . . . . . . . . . . . . . . . Walls Destroyed . | . . . . . . . . . . . . . . . . Machines Disabled . | . . . . . . . . . . . . . . . . Actions | -11 -10 -9 -8 -8 -7 -6 -5 -5 -5 -4 -3 -3 -2 -1 -1 --------- Run | Yrd Mat Mat Mat Sto Fac Fac Fac Upp Upp Fac Res Tes Res Acc Com Total 9747 | 165 1478 706 294 371 796 476 1356 668 13 52 360 710 669 1218 415 Wait 1127 | 1 563 15 2 52 65 30 26 59 . . 33 109 47 125 . Move 7963 | 124 814 540 256 284 705 421 1295 606 13 44 281 553 584 1061 382 Hop 56 | . . . 3 19 4 4 5 . . . 4 3 8 3 3 Pick Up 39 | 2 7 2 . 1 4 3 7 . . . 4 3 3 2 1 Fast Attach 42 | 7 . 4 1 2 4 1 . . . . 6 4 3 5 5 Attach 31 | . 1 5 2 . 1 3 2 . . 3 5 2 5 2 . Detach 14 | . . . 1 . . 2 . . . 1 6 1 3 . . Swap 85 | . 12 22 7 6 5 2 5 2 . 3 10 3 5 2 1 Drop 62 | . 7 11 5 5 6 3 5 . . 1 9 4 1 2 3 Fire 226 | 31 70 105 17 2 1 . . . . . . . . . . Melee 53 | . . . . . 1 7 11 1 . . 2 7 3 16 5 Ram 1 | . . 1 . . . . . . . . . . . . . Kick 5 | . 4 1 . . . . . . . . . . . . . Crush . | . . . . . . . . . . . . . . . . Escape Stasis 43 | . . . . . . . . . . . . 21 7 . 15 Rewire . | . . . . . . . . . . . . . . . . Trap . | . . . . . . . . . . . . . . . . Miscellaneous . | . . . . . . . . . . . . . . . . Route ------- -11/Scrapyard -10/Materials (discovered 5 exits: *Mat x3 / [*Min x2]) -9/Materials (discovered 3 exits: *Mat x2 / Min) -8/Materials -8/Storage -7/Factory (discovered 2 exits: *Fac / *Low) -6/Factory (discovered 2 exits: *Fac / *Low) -5/Factory -5/Upper Caves -5/Upper Caves -4/Factory (discovered 2 exits: *Res / Arm) -3/Research -3/Testing -2/Research -1/Access -1/Command (discovered 1 exit: [*Sur]) History --------- Turn | Location | Event 4 | -11/Scrapyard | Discovered new exit (range 16) 255 | -11/Scrapyard | Entered Materials 298 | -10/Materials | Discovered new exit (range 7) 305 | -10/Materials | Build established: Mutant 340 | -10/Materials | Discovered new exit (range 7) 447 | -10/Materials | Discovered new exit (range 6) 718 | -10/Materials | Discovered new exit (range 10) 884 | -10/Materials | Discovered new exit (range 8) 1680 | -10/Materials | Learned 4 Recycling zone layouts 1788 | -10/Materials | Learned Storage trap positions 1826 | -10/Materials | Loaded intel: 8 terminal locations 1853 | -10/Materials | Learned Storage security intel 1871 | -10/Materials | Learned location of Subcaves (-10) 1935 | -10/Materials | Learned location of 2 exits from Subcaves 2034 | -10/Materials | Entered another Materials area 2034 | -9/Materials | Evolved 2 slots: Propulsion x2 2035 | -9/Materials | Identified exit to Mines 2413 | -9/Materials | Lost 4 parts (1p2n1w) 2467 | -9/Materials | Discovered new exit (range 15) 2796 | -9/Materials | Build established: Scavenger-Mutant 2945 | -9/Materials | Discovered new exit (range 16) 2970 | -9/Materials | Entered another Materials area 2970 | -8/Materials | Evolved 2 slots: Propulsion x1, Utility x1 3111 | -8/Materials | Garrison activated, responded to threat 3115 | -8/Materials | Discovered new exit (range 6) 3117 | -8/Materials | Entered Storage 3118 | -8/Storage | Loaded intel: 14 trap records 3145 | -8/Storage | Met a pair of Derelict thieves 3290 | -8/Storage | Discovered new exit (range 16) 3294 | -8/Storage | Entered Factory 3294 | -7/Factory | Evolved 2 slots: Power x1, Utility x1 3297 | -7/Factory | Lost 4 parts (2n1u1w) 3335 | -7/Factory | Discovered new exit (range 16) 3419 | -7/Factory | Discovered new exit (range 14) 3509 | -7/Factory | Identified exit to Lower Caves 3547 | -7/Factory | Identified exit to Factory 3547 | -7/Factory | Entered another Factory area 3547 | -6/Factory | Evolved 2 slots: Utility x2 3697 | -6/Factory | Discovered new exit (range 3) 3697 | -6/Factory | Identified exit to Factory 3698 | -6/Factory | Discovered new exit (range 16) 3704 | -6/Factory | Identified exit to Lower Caves 3707 | -6/Factory | Entered another Factory area 3707 | -5/Factory | Evolved 2 slots: Propulsion x1, Utility x1 3855 | -5/Factory | Build established: Hacker-Sprinter 3861 | -5/Factory | Discovered new exit (range 8) 3875 | -5/Factory | Identified exit to Upper Caves 3954 | -5/Factory | Spotted B-75 Beast 4055 | -5/Factory | Entered Upper Caves 4055 | -5/Upper Caves | Spotted B-75 Beast 4064 | -5/Upper Caves | Learned Factory terminal intel 4076 | -5/Upper Caves | Attracted the attention of an 0b10 outpost 4232 | -5/Upper Caves | Learned 4 Factory zone layouts 4246 | -5/Upper Caves | Discovered new exit (range 5) 4247 | -5/Upper Caves | Identified exit to Upper Caves 4247 | -5/Upper Caves | Entered another Upper Caves area 4247 | -5/Upper Caves | Discovered new exit (range 11) 4250 | -5/Upper Caves | Identified exit to Factory 4250 | -5/Upper Caves | Entered Factory 4250 | -4/Factory | Evolved 2 slots: Utility x2 4251 | -4/Factory | Identified exit to Armory 4252 | -4/Factory | Loaded intel: 26 terminal locations 4266 | -4/Factory | Discovered new exit (range 9) 4268 | -4/Factory | Identified exit to Research 4269 | -4/Factory | Entered Research 4269 | -3/Research | Evolved 2 slots: Propulsion x1, Utility x1 4386 | -3/Research | Discovered new exit (range 11) 4399 | -3/Research | Identified exit to Testing 4399 | -3/Research | Entered Testing 4418 | -3/Testing | Central database locked down 4450 | -3/Testing | Found Prototype Device 4450 | -3/Testing | Identified Exp. Thermal Shield 4590 | -3/Testing | Scanned by Researcher 4631 | -3/Testing | Found Prototype Hackware 4631 | -3/Testing | Identified Ghost Barrier 4672 | -3/Testing | Discovered new exit (range 19) 4676 | -3/Testing | Identified exit to Research 4677 | -3/Testing | Entered Research 4677 | -2/Research | Evolved 2 slots: Power x1, Propulsion x1 4684 | -2/Research | Lost 4 parts (1p2u1w) 4753 | -2/Research | Spotted B-90 Cyclops 4777 | -2/Research | Build established: Hacker-Ninja 4810 | -2/Research | Found Prototype Processor 4810 | -2/Research | Identified Exp. Core Analyzer 4875 | -2/Research | Discovered new exit (range 9) 4877 | -2/Research | Identified exit to Access 4877 | -2/Research | Entered Access 4877 | -1/Access | Evolved 2 slots: Utility x2 5177 | -1/Access | Build established: Hacker-Scout 5210 | -1/Access | Spotted B-99 Colossus 5278 | -1/Access | Lost 5 parts (3n2u) 5284 | -1/Access | Discovered new exit (range 7) 5285 | -1/Access | Identified exit to Command 5285 | -1/Access | Entered Command 5400 | -1/Command | Spotted Alpha 7 5400 | -1/Command | Spotted Striker 5400 | -1/Command | Spotted Executioner 5400 | -1/Command | Spotted Executioner 5400 | -1/Command | Spotted Alpha 7 5400 | -1/Command | Spotted Striker 5400 | -1/Command | Spotted Executioner 5400 | -1/Command | Spotted Executioner 5402 | -1/Command | Spotted B-99 Colossus 5402 | -1/Command | Spotted B-99 Colossus 5410 | -1/Command | Discovered new exit (range 7) 5412 | -1/Command | Core integrity fell below 50% 5415 | -1/Command | Core integrity fell below 20% 5418 | -1/Command | Destroyed by B-99 Colossus with Linear Accelerator Last Messages --------------- 05415_ Field strength at 94. 05415_ Penetrated by Slug. 05415_ Slug penetrates Reinforced Barrier. 05415_ Penetrated by Slug. 05415_ Slug penetrates Wall. 05415_ Field strength at 44. 05416_ Field strength at 68. 05416_ Adv. Signal Interpreter destroyed. 05416_ Field strength at 28. 05417_ Field strength at 60. 05417_ Penetrated by Slug. 05417_ Field strength at 11. 05417_ Penetrated by Slug. 05417_ Stasis field depleted. 05418_ Field strength at 45. 05418_ Knocked back. 05418_ Triggered Stasis Trap. 05418_ A bubble of rippling energy engulfs the area. 05418_ Field strength at 94. Map ----- +----------------------------------------------------+ | # # #???????# """" ??""""???? | | # # #???????# "" ??""""???? | | # # #######?# ???????????? | | # # ! #"""" #?# ??? | | # # #""R""#?# ???? | | # ##/###########"" ""### ####???????????? | | # #??????????????? | | # #??????????????? | | #+######### #??????????????? | | ???????# Y######??????????????? | | ???????# """#????????????????? | | """"?????# h Y"#????????????????? | | ""R""????# """#????????????????? | | "" ""????# !! #########??????## # | | ?????# ! " | | * ????# ####### ####### #+##???## # | | ????# #???##;;/p;###???? ????????????? | | #######???# #???#; ^% %;#???? ????????????? | | ??????????# ######???## % ##???? ????????????? | | ??????????# #????????# #???? ??????????""" | | ?????""???# #????????## R%##???? ??????????""" | | ????""""??/ +????????# ##??? ??????????""" | | ????""""? # #????????## 7^ E ;;#??# #?????????""" | | ?????""? # ##????????#%E ! =^ ##??# #???????????? | | ??????? ?# ?????????##;E%K*7E##???# #???????????? | | ?????? ?# ?????????#; @ #???# #?????????### | | ??????##??# ?????????##; K^BB##???# ######????# | | ??????????# ????????# BB % BB #?# #]] #????# | | ??????????# ????????# BB % #?# #]!! #????# | | ??????????# ????????# ^ #?# #]!! ###### | | ????????????????????# #?# # # " | | ????????????????????# ^ ^ #?# # # # | | ????????????????????# ^ "" #?# + * # !### | | ????????????????????# "< #?# ###### #?? | | ????????????????????# #?# + #?? | | ????????????????????# ^ #?# ###### ! #?? | | ????????????????????# #?# #????# #?? | | ????????????????????# #?# #????# #?? | | ????????????????????# #?# #????# #?? | | ????????????????????##############?# #????######?? | | ???????????????????????????????????# #???????????? | | ?????????????????????????????#######+#####???????? | | ?????????????????????????????# #???????? | | ?????????????????????????????# """ #???????? | | ?????????????????????????????# T""" #???????? | | ?????????????????????????????# """" #???????? | | ?????????????????????????????# """ #???????? | | ?????????????????????????????# #???????? | | ?????????????????????????????# #???????? | | ?????????????????????????????######+######???????? | +----------------------------------------------------+ Best States ------------- Heat Dissipation 65 Coolant Potential 50 Energy Generation 53 Energy Capacity 740 Matter Stores 300 Matter Capacity 300 Sight Range 22 Robot Scan Range 16 Terrain Scan Density 10 Jamming Range 12 Base Temperature (-) 200 Evasion (%) 78 Offensive Hacking 10 Defensive Hacking 44 Item Schematics ----------------- None Robot Schematics ------------------ B-74 Champion | -3/Testing | Archive R-10 Processor | -3/Testing | Archive Fabricated ------------ Nothing Repaired ---------- Nothing Alien Tech Used ----------------- None Achievements -------------- Knowing Is Half The Battle Challenges ------------ None Game ------ Seed SuperdenseCannonRipper Manual? 0 Play Time 01:12:17 Cumulative 174.3 hours Start 2025.10.15 @ 01:50:42 End 2025.10.15 @ 03:03:45 Sessions 1 Manual Loads 0 Difficulty Rogue Special Mode None Game No. 306 Rogue 304 Adventurer 0 Explorer 2 Win Type - Total 1 Types 1/0/0/0/0/0/0/0/0/0 Lore% 47 Gallery% 56 Achievement% 46 Wizard Run 0 Options --------- Layout 2 ASCII 0 Keyboard 1 Movement Arrows Keybinds 0 Fullscreen 1 Font 28/SmallcapsGlow Map View 50x49 Zoom Use 0% Tactical HUD 1 Map Filters NONE Filters NONE Steam 1 RUN: 9a3284f3-a078-4b3b-b8d8-a305b6506680